fUST/lending_fUST_20240508
["ID","MTS","AMOUNT","RATE_DAILY","PERIOD"]
[326620676,1715154653727,-500.0,0.0002,2]
[326620677,1715154653737,-807.0,0.0002,2]
[326620678,1715154653747,-597.81,0.0002,2]
[326620679,1715154653757,-1413.53,0.0002,2]
[326620680,1715154653768,-151.16746634,0.0002,2]
[326620681,1715154653777,-500.0,0.0002,2]
[326620682,1715154653786,-602.82,0.0002,2]
[326620683,1715154653796,-500.0,0.0002,2]
[326620684,1715154653805,-500.0,0.0002,2]
[326620685,1715154653817,-933.77,0.0002,2]
[326620686,1715154653826,-500.0,0.0002,2]
[326620687,1715154653835,-500.0,0.0002,2]
[326620688,1715154653845,-1421.1,0.0002,2]
[326620689,1715154653854,-707.18,0.0002,2]
[326620690,1715154653864,-804.29,0.0002,2]
[326620691,1715154653873,-1294.07,0.0002,2]
[326620692,1715154653883,-200.0,0.0002,2]
[326620693,1715154653893,-500.0,0.0002,2]
[326620694,1715154653902,-821.38,0.0002,2]
[326620695,1715154653912,-778.58,0.0002,2]
[326620696,1715154653921,-1278.33,0.0002,2]
[326620697,1715154653931,-500.0,0.0002,2]
[326620698,1715154653940,-681.48,0.0002,2]
[326620699,1715154653949,-500.0,0.0002,2]
[326620700,1715154653958,-831.35,0.0002,2]
[326620701,1715154653967,-620.00000654,0.00020065,2]
[326620702,1715154653976,-1000.0,0.000201,2]
[326620703,1715154653986,-302.33147127,0.00020253,2]
[326620704,1715154653995,-150.0,0.00020256,2]
[326620705,1715154654005,-565.76507937,0.00020273,2]
[326620706,1715154654014,-500.0,0.00020273,2]
[326620707,1715154654024,-500.0,0.00020273,2]
[326620708,1715154654033,-500.0,0.00020273,2]
[326620709,1715154654043,-500.0,0.00020273,2]
[326620710,1715154654053,-500.0,0.00020273,2]
[326620711,1715154654062,-2544.17,0.00020273,2]
[326620712,1715154654071,-500.0,0.00020273,2]
[326620713,1715154654080,-597.81,0.00020273,2]
[326620714,1715154654090,-1413.53,0.00020273,2]
[326620715,1715154654099,-500.0,0.00020273,2]
[326620716,1715154654108,-602.82,0.00020273,2]
[326620717,1715154654118,-500.0,0.00020273,2]
[326620718,1715154654127,-500.0,0.00020273,2]
[326620719,1715154654137,-933.77,0.00020273,2]
[326620720,1715154654148,-500.0,0.00020273,2]
[326620721,1715154654157,-500.0,0.00020273,2]
[326620722,1715154654167,-1421.1,0.00020273,2]
[326620723,1715154654176,-707.18,0.00020273,2]
[326620724,1715154654186,-804.29,0.00020273,2]
[326620725,1715154654196,-1294.07,0.00020273,2]
[326620726,1715154654205,-500.0,0.00020273,2]
[326620727,1715154654214,-821.38,0.00020273,2]
[326620728,1715154654224,-778.58,0.00020273,2]
[326620729,1715154654235,-1278.33,0.00020273,2]
[326620730,1715154654246,-500.0,0.00020273,2]
[326620731,1715154654258,-681.48,0.00020273,2]
[326620732,1715154654267,-500.0,0.00020273,2]
[326620733,1715154654277,-831.35,0.00020273,2]
[326620734,1715154654287,-150.0,0.00020467,2]
[326620735,1715154654297,-500.0,0.00020547,2]
[326620736,1715154654307,-500.0,0.00020547,2]
[326620737,1715154654316,-500.0,0.00020547,2]
[326620738,1715154654326,-500.0,0.00020547,2]
[326620739,1715154654335,-323.39970712,0.00020547,2]
[326620740,1715154654345,-2544.17,0.00020547,2]
[326620741,1715154654355,-500.0,0.00020547,2]
[326620742,1715154654364,-597.81,0.00020547,2]
[326620743,1715154654375,-1413.53,0.00020547,2]
[326620744,1715154654384,-500.0,0.00020547,2]
[326620745,1715154654399,-602.82,0.00020547,2]
[326620746,1715154654409,-500.0,0.00020547,2]
[326620747,1715154654419,-530.40983341,0.00020547,2]
[326620748,1715154654428,-933.77,0.00020547,2]
[326620749,1715154654438,-500.0,0.00020547,2]
[326620750,1715154654447,-500.0,0.00020547,2]
[326620751,1715154654456,-1421.1,0.00020547,2]
[326620752,1715154654466,-707.18,0.00020547,2]
[326620753,1715154654480,-804.29,0.00020547,2]
[326620754,1715154654489,-1294.07,0.00020547,2]
[326620755,1715154654499,-500.0,0.00020547,2]
[326620756,1715154654508,-821.38,0.00020547,2]
[326620757,1715154654519,-778.58,0.00020547,2]
[326620758,1715154654528,-1278.33,0.00020547,2]
[326620759,1715154654538,-500.0,0.00020547,2]
[326620760,1715154654548,-681.48,0.00020547,2]
[326620761,1715154654559,-500.0,0.00020547,2]
[326620762,1715154654570,-831.35,0.00020547,2]
[326620763,1715154654579,-1000.0,0.000206,2]
[326620764,1715154654590,-150.0,0.00020678,2]
[326620765,1715154654599,-1000.0,0.00020813,2]
[326620766,1715154654608,-500.0,0.00020821,2]
[326620767,1715154654617,-500.0,0.00020821,2]
[326620768,1715154654627,-500.0,0.00020821,2]
[326620769,1715154654636,-500.0,0.00020821,2]
[326620770,1715154654646,-2544.17,0.00020821,2]
[326620771,1715154654656,-500.0,0.00020821,2]
[326620772,1715154654665,-597.81,0.00020821,2]
[326620773,1715154654675,-1413.53,0.00020821,2]
[326620774,1715154654684,-500.0,0.00020821,2]
[326620775,1715154654694,-602.82,0.00020821,2]
[326620776,1715154654704,-500.0,0.00020821,2]
[326620777,1715154654713,-933.77,0.00020821,2]
[326620778,1715154654722,-500.0,0.00020821,2]
[326620779,1715154654731,-500.0,0.00020821,2]
[326620780,1715154654741,-1421.1,0.00020821,2]
[326620781,1715154654753,-707.18,0.00020821,2]
[326620782,1715154654764,-804.29,0.00020821,2]
[326620783,1715154654774,-1294.07,0.00020821,2]
[326620784,1715154654784,-500.0,0.00020821,2]
[326620785,1715154654794,-821.38,0.00020821,2]
[326620786,1715154654803,-778.58,0.00020821,2]
[326620787,1715154654813,-1278.33,0.00020821,2]
[326620788,1715154654822,-455.83254005,0.00020821,2]
[326620789,1715154654832,-681.48,0.00020821,2]
[326620790,1715154654841,-500.0,0.00020821,2]
[326620791,1715154654850,-831.35,0.00020821,2]
[326620792,1715154654860,-150.0,0.00020889,2]
[326620793,1715154654869,-3000.0,0.0002097,6]
[326620794,1715154654878,-197.43641427,0.00021,2]
[326620795,1715154654887,-2003.95773825,0.00021,5]
[326620796,1715154654898,-236.85244888,0.00021,2]
[326620797,1715154654908,-3156.5440977,0.00021,7]
[326620798,1715154654918,-39581.11106359,0.00021,2]
[326620799,1715154654928,-10020.47376687,0.00021,2]
[326620800,1715154654938,-620.00000033,0.00021068,2]
[326620801,1715154654948,-500.0,0.00021095,2]
[326620802,1715154654957,-500.0,0.00021095,2]
[326620803,1715154654966,-500.0,0.00021095,2]
[326620804,1715154654976,-500.0,0.00021095,2]
[326620805,1715154654985,-2544.17,0.00021095,2]
[326620806,1715154654995,-500.0,0.00021095,2]
[326620807,1715154655005,-597.81,0.00021095,2]
[326620808,1715154655015,-1413.53,0.00021095,2]
[326620809,1715154655025,-500.0,0.00021095,2]
[326620810,1715154655034,-602.82,0.00021095,2]
[326620811,1715154655043,-500.0,0.00021095,2]
[326620812,1715154655053,-933.77,0.00021095,2]
[326620813,1715154655062,-500.0,0.00021095,2]
[326620814,1715154655072,-500.0,0.00021095,2]
[326620815,1715154655081,-1421.1,0.00021095,2]
[326620816,1715154655091,-707.18,0.00021095,2]
[326620817,1715154655101,-804.29,0.00021095,2]
[326620818,1715154655110,-1294.07,0.00021095,2]
[326620819,1715154655119,-500.0,0.00021095,2]
[326620820,1715154655129,-821.38,0.00021095,2]
[326620821,1715154655138,-778.58,0.00021095,2]
[326620822,1715154655149,-1278.33,0.00021095,2]
[326620823,1715154655158,-681.48,0.00021095,2]
[326620824,1715154655168,-500.0,0.00021095,2]
[326620825,1715154655178,-831.35,0.00021095,2]
[326620826,1715154655187,-500.0,0.000211,2]
[326620827,1715154655196,-34169.53086544,0.000211,2]
[326620828,1715154655207,-561.0,0.000211,2]
[326620829,1715154655216,-608.0,0.000211,2]
[326620830,1715154655230,-561.0,0.000211,2]
[326620831,1715154655240,-280.0,0.000211,2]
[326620832,1715154655250,-177.0,0.000211,2]
[326620833,1715154655259,-160.0,0.000211,2]
[326620834,1715154655270,-10615.15949594,0.000211,2]
[326620835,1715154655279,-3966.74516132,0.000211,2]
[326620836,1715154655289,-154.64431807,0.000211,2]
[326620837,1715154655299,-123374.17724521,0.000211,2]
[326620838,1715154655309,-150.0,0.000211,2]
[326620839,1715154655319,-1000.0,0.000211,2]
[326620840,1715154655329,-150.0,0.000211,2]
[326620841,1715154655338,-4516.29135341,0.00021226,7]
[326620842,1715154655348,-150.0,0.00021311,2]
[326620843,1715154655358,-500.0,0.00021369,2]
[326620844,1715154655368,-408.17777895,0.00021369,2]
[326620845,1715154655378,-500.0,0.00021369,2]
[326620846,1715154655388,-500.0,0.00021369,2]
[326620847,1715154655399,-2544.17,0.00021369,2]
[326620848,1715154655411,-500.0,0.00021369,2]
[326620849,1715154655420,-597.81,0.00021369,2]
[326620850,1715154655430,-1413.53,0.00021369,2]
[326620851,1715154655439,-500.0,0.00021369,2]
[326620852,1715154655449,-602.82,0.00021369,2]
[326620853,1715154655458,-500.0,0.00021369,2]
[326620854,1715154655468,-933.77,0.00021369,2]
[326620855,1715154655483,-500.0,0.00021369,2]
[326620856,1715154655492,-500.0,0.00021369,2]
[326620857,1715154655502,-1421.1,0.00021369,2]
[326620858,1715154655515,-707.18,0.00021369,2]
[326620859,1715154655528,-804.29,0.00021369,2]
[326620860,1715154655538,-1294.07,0.00021369,2]
[326620861,1715154655548,-500.0,0.00021369,2]
[326620862,1715154655560,-821.38,0.00021369,2]
[326620863,1715154655570,-778.58,0.00021369,2]
[326620864,1715154655580,-1278.33,0.00021369,2]
[326620865,1715154655589,-681.48,0.00021369,2]
[326620866,1715154655599,-500.0,0.00021369,2]
[326620867,1715154655609,-831.35,0.00021369,2]
[326620868,1715154655619,-5600.0,0.000215,6]
[326620869,1715154655629,-150.0,0.00021522,2]
[326620870,1715154655640,-12311.05578086,0.00021628,2]
[326620871,1715154655651,-500.0,0.00021643,2]
[326620872,1715154655661,-500.0,0.00021643,2]
[326620873,1715154655670,-500.0,0.00021643,2]
[326620874,1715154655679,-2544.17,0.00021643,2]
[326620875,1715154655688,-500.0,0.00021643,2]
[326620876,1715154655700,-597.81,0.00021643,2]
[326620877,1715154655711,-1413.53,0.00021643,2]
[326620878,1715154655721,-500.0,0.00021643,2]
[326620879,1715154655731,-602.82,0.00021643,2]
[326620880,1715154655741,-500.0,0.00021643,2]
[326620881,1715154655751,-933.77,0.00021643,2]
[326620882,1715154655761,-500.0,0.00021643,2]
[326620883,1715154655770,-500.0,0.00021643,2]
[326620884,1715154655779,-485.15980359,0.00021643,2]
[326620885,1715154771340,3171.0217636,0.000211,9]
[326620887,1715155008652,218.0,0.00019,10]
[326620892,1715155412873,154.62889066,9.999e-05,2]
[326620893,1715155456397,154.62889066,9.999e-05,2]
[326620894,1715155475919,154.62889066,9.999e-05,2]
[326620895,1715155490827,183.63375431,9.999e-05,2]
[326620896,1715155525083,522.77600447,9.999e-05,2]
[326620897,1715155592323,200.0,0.00025995,120]
[326620898,1715155626995,-167.925754,0.0001589,2]
[326620899,1715155628031,-163.135653,0.0001589,2]
[326620900,1715155629198,-894.24108922,0.00016,2]
[326620901,1715155629955,-150.0,0.00016078,2]
[326620902,1715155630597,-3613.03308272,0.00016362,2]
[326620903,1715155630619,-150.0,0.00016584,2]
[326620904,1715155630640,-154.62889066,0.00016917,2]
[326620905,1715155630661,-250.0,0.00016918,2]
[326620906,1715155630683,-162.316488,0.00017063,2]
[326620907,1715155630705,-150.0,0.0001709,2]
[326620908,1715155630725,-379.96231687,0.00018,2]
[326620909,1715155630749,-929.6379252,0.00018217,2]
[326620910,1715155630773,-604.62485122,0.000185,2]
[326620911,1715155630794,-154.62889066,0.00019,2]
[326620912,1715155630814,-191.12209537,0.00019,2]
[326620913,1715155630836,-204.45817394,0.00019,2]
[326620914,1715155630856,-574.01945909,0.00019,2]
[326620915,1715155630877,-176.77057911,0.00019,2]
[326620916,1715155630897,-150.0,0.00019,2]
[326620917,1715155630916,-7949.13788461,0.00019,2]
[326620918,1715155630936,-364.00426067,0.00019174,2]
[326620919,1715155630954,-544.37904547,0.00019176,2]
[326620920,1715155630974,-816.50766108,0.00019176,2]
[326620921,1715155630994,-847.03920929,0.00019176,2]
[326620922,1715155631015,-469.39449574,0.00019176,2]
[326620923,1715155631036,-466.47330937,0.00019176,2]
[326620924,1715155631056,-942.88071557,0.00019176,2]
[326620925,1715155631076,-475.70095174,0.00019176,2]
[326620926,1715155631097,-1685.75404763,0.00019176,2]
[326620927,1715155631117,-186.51990005,0.00019176,2]
[326620928,1715155631138,-284.29807878,0.00019176,2]
[326620929,1715155631159,-584.11436245,0.00019176,2]
[326620930,1715155631178,-1000.0,0.00019176,2]
[326620931,1715155631197,-816.12984113,0.00019176,2]
[326620932,1715155631216,-522.47432825,0.00019177,2]
[326620933,1715155631236,-500.0,0.00019178,2]
[326620934,1715155631255,-584.56551203,0.00019178,2]
[326620935,1715155631276,-500.0,0.00019178,2]
[326620936,1715155631296,-500.0,0.00019178,2]
[326620937,1715155631316,-500.0,0.00019178,2]
[326620938,1715155631336,-500.0,0.00019178,2]
[326620939,1715155631355,-500.0,0.00019178,2]
[326620940,1715155631374,-440.19510808,0.00019178,2]
[326620941,1715155631394,-421.06442884,0.00019178,2]
[326620942,1715155631413,-500.0,0.00019178,2]
[326620943,1715155631433,-500.0,0.00019178,2]
[326620944,1715155631453,-500.0,0.00019178,2]
[326620945,1715155631473,-500.0,0.00019178,2]
[326620946,1715155631492,-500.0,0.00019178,2]
[326620947,1715155631511,-519.59,0.00019178,2]
[326620948,1715155631534,-500.0,0.00019178,2]
[326620949,1715155631555,-500.0,0.00019178,2]
[326620950,1715155631576,-161.91360923,0.00019178,2]
[326620951,1715155631596,-500.0,0.00019178,2]
[326620952,1715155631616,-1484.1,0.00019178,2]
[326620953,1715155631637,-500.0,0.00019178,2]
[326620954,1715155631658,-500.0,0.00019178,2]
[326620955,1715155631680,-1011.52,0.00019178,2]
[326620956,1715155631702,-500.0,0.00019178,2]
[326620957,1715155631723,-500.0,0.00019178,2]
[326620958,1715155631747,-500.0,0.00019178,2]
[326620959,1715155631770,-941.6,0.00019178,2]
[326620960,1715155631791,-500.0,0.00019178,2]
[326620961,1715155631812,-500.0,0.00019178,2]
[326620962,1715155631835,-500.0,0.00019178,2]
[326620963,1715155631858,-500.0,0.00019178,2]
[326620964,1715155631879,-500.0,0.00019178,2]
[326620965,1715155631900,-364.92,0.00019178,2]
[326620966,1715155631921,-502.68,0.00019178,2]
[326620967,1715155631943,-500.0,0.00019178,2]
[326620968,1715155631965,-341.292327,0.00019178,2]
[326620969,1715155631986,-513.36,0.00019451,2]
[326620970,1715155632008,-500.0,0.00019451,2]
[326620971,1715155632030,-657.29,0.00019451,2]
[326620972,1715155632051,-500.0,0.00019451,2]
[326620973,1715155632073,-500.0,0.00019451,2]
[326620974,1715155632094,-544.7,0.00019451,2]
[326620975,1715155632115,-500.0,0.00019451,2]
[326620976,1715155632136,-3794.62,0.00019451,2]
[326620977,1715155632156,-798.95,0.00019451,2]
[326620978,1715155632177,-500.0,0.00019451,2]
[326620979,1715155632197,-500.0,0.00019452,2]
[326620980,1715155632217,-500.0,0.00019452,2]
[326620981,1715155632236,-500.0,0.00019452,2]
[326620982,1715155632257,-251.73167366,0.00019452,2]
[326620983,1715155632280,-519.59,0.00019452,2]
[326620984,1715155632300,-1484.1,0.00019452,2]
[326620985,1715155632320,-500.0,0.00019452,2]
[326620986,1715155632341,-1011.52,0.00019452,2]
[326620987,1715155632362,-500.0,0.00019452,2]
[326620988,1715155632382,-500.0,0.00019452,2]
[326620989,1715155632401,-500.0,0.00019452,2]
[326620990,1715155632421,-941.6,0.00019452,2]
[326620991,1715155632441,-500.0,0.00019452,2]
[326620992,1715155632461,-502.68,0.00019452,2]
[326620993,1715155632481,-500.0,0.00019452,2]
[326620994,1715155632502,-513.36,0.00019725,2]
[326620995,1715155632787,-500.0,0.00019725,2]
[326620996,1715155632811,-657.29,0.00019725,2]
[326620997,1715155632834,-500.0,0.00019725,2]
[326620998,1715155632856,-500.0,0.00019725,2]
[326620999,1715155632878,-544.7,0.00019725,2]
[326621000,1715155632900,-500.0,0.00019725,2]
[326621001,1715155632923,-3794.62,0.00019725,2]
[326621002,1715155632942,-500.0,0.00019725,2]
[326621003,1715155632963,-228.13515676,0.00019725,2]
[326621004,1715155632984,-639.02170086,0.00019725,2]
[326621005,1715155633006,-500.0,0.00019725,2]
[326621006,1715155633029,-399.85345651,0.00019725,2]
[326621007,1715155633049,-503.98141635,0.00019725,2]
[326621008,1715155633070,-507.83210703,0.00019725,2]
[326621009,1715155633091,-500.0,0.00019725,2]
[326621010,1715155633110,-500.0,0.00019725,2]
[326621011,1715155633130,-452.34963211,0.00019725,2]
[326621012,1715155633151,-500.0,0.00019725,2]
[326621013,1715155633171,-500.0,0.00019725,2]
[326621014,1715155633192,-798.95,0.00019725,2]
[326621015,1715155633213,-500.0,0.00019725,2]
[326621016,1715155633235,-500.0,0.00019726,2]
[326621017,1715155633255,-500.0,0.00019726,2]
[326621018,1715155633278,-500.0,0.00019726,2]
[326621019,1715155633298,-519.59,0.00019726,2]
[326621020,1715155633318,-1484.1,0.00019726,2]
[326621021,1715155633338,-500.0,0.00019726,2]
[326621022,1715155633359,-500.0,0.00019726,2]
[326621023,1715155633379,-1011.52,0.00019726,2]
[326621024,1715155633400,-500.0,0.00019726,2]
[326621025,1715155633422,-500.0,0.00019726,2]
[326621026,1715155633443,-941.6,0.00019726,2]
[326621027,1715155633464,-500.0,0.00019726,2]
[326621028,1715155633486,-502.68,0.00019726,2]
[326621029,1715155633507,-500.0,0.00019726,2]
[326621030,1715155633528,-2000.0,0.000199,2]
[326621031,1715155633550,-36060.65930206,0.000199,2]
[326621032,1715155633572,-154.69061876,0.00019999,2]
[326621033,1715155633594,-513.36,0.00019999,2]
[326621034,1715155633616,-500.0,0.00019999,2]
[326621035,1715155633638,-657.29,0.00019999,2]
[326621036,1715155633659,-500.0,0.00019999,2]
[326621037,1715155633680,-500.0,0.00019999,2]
[326621038,1715155633701,-544.7,0.00019999,2]
[326621039,1715155633722,-500.0,0.00019999,2]
[326621040,1715155633747,-3794.62,0.00019999,2]
[326621041,1715155633768,-798.95,0.00019999,2]
[326621042,1715155633790,-500.0,0.00019999,2]
[326621043,1715155633930,-320.60889493,0.0002,2]
[326621044,1715155633951,-200.0,0.0002,2]
[326621045,1715155633970,-836.16965769,0.0002,2]
[326621046,1715155633990,-17702.95168721,0.0002,2]
[326621047,1715155634303,-1187.07681618,0.0002,2]
[326621048,1715155634322,-160.0,0.0002,2]
[326621049,1715155634342,-154.62889066,0.0002,2]
[326621050,1715155634362,-154.62889066,0.0002,2]
[326621051,1715155634381,-9489.4331325,0.0002,2]
[326621052,1715155652726,-3251.72977445,0.00016375,2]
[326621053,1715155653385,-154.62889066,0.00019,2]
[326621054,1715155654997,-155.25679827,0.00019176,2]
[326621055,1715155655020,-364.00426067,0.00019176,2]
[326621056,1715155655044,-894.24108922,0.00019177,2]
[326621057,1715155655066,-500.0,0.00019178,2]
[326621058,1715155655088,-500.0,0.00019452,2]
[326621059,1715155655110,-500.0,0.00019725,2]
[326621060,1715155655130,-601.19442491,0.00019725,2]
[326621061,1715155655151,-385.0,0.00019725,2]
[326621062,1715155655173,-500.0,0.00019726,2]
[326621063,1715155655194,-410.53930722,0.000199,2]
[326621064,1715155655214,-379.96231687,0.00019999,2]
[326621065,1715155655236,-604.62485122,0.00019999,2]
[326621066,1715155655256,-7961.31789608,0.00019999,2]
[326621067,1715155655276,-70510.5668675,0.0002,2]
[326621068,1715155655298,-233231.27752846,0.0002,2]
[326621069,1715155655318,-400.0,0.0002,2]
[326621070,1715155655339,-1141.60966579,0.0002,2]
[326621071,1715155655361,-500.0,0.0002,2]
[326621072,1715155655383,-181.25647879,0.0002,2]
[326621073,1715155655405,-500.0,0.0002,2]
[326621074,1715155655427,-519.59,0.0002,2]
[326621075,1715155655447,-200.0,0.0002,2]
[326621076,1715155655473,-1484.1,0.0002,2]
[326621077,1715155655494,-500.0,0.0002,2]
[326621078,1715155655516,-1011.52,0.0002,2]
[326621079,1715155655538,-500.0,0.0002,2]
[326621080,1715155655558,-500.0,0.0002,2]
[326621081,1715155655584,-941.6,0.0002,2]
[326621082,1715155655606,-500.0,0.0002,2]
[326621083,1715155655628,-502.68,0.0002,2]
[326621084,1715155655649,-500.0,0.0002,2]
[326621085,1715155655670,-500.0,0.0002,2]
[326621086,1715155655690,-500.0,0.00020273,2]
[326621087,1715155655713,-500.0,0.00020273,2]
[326621088,1715155655733,-519.59,0.00020273,2]
[326621089,1715155655759,-500.0,0.00020273,2]
[326621090,1715155655782,-657.29,0.00020273,2]
[326621091,1715155655802,-1484.1,0.00020273,2]
[326621092,1715155655825,-500.0,0.00020273,2]
[326621093,1715155655848,-500.0,0.00020273,2]
[326621094,1715155655870,-544.7,0.00020273,2]
[326621095,1715155655890,-500.0,0.00020273,2]
[326621096,1715155655913,-1011.52,0.00020273,2]
[326621097,1715155655933,-541.39156068,0.00020273,2]
[326621098,1715155655954,-500.0,0.00020273,2]
[326621099,1715155655975,-400.99103165,0.00020273,2]
[326621100,1715155655996,-941.6,0.00020273,2]
[326621101,1715155656018,-3794.62,0.00020273,2]
[326621102,1715155656041,-500.0,0.00020273,2]
[326621103,1715155656062,-502.68,0.00020273,2]
[326621104,1715155656083,-500.0,0.00020273,2]
[326621105,1715155656239,-798.95,0.00020273,2]
[326621106,1715155656260,-500.0,0.00020273,2]
[326621107,1715155656280,-500.0,0.00020273,2]
[326621108,1715155656301,-589.0,0.000203,2]
[326621109,1715155656320,-500.0,0.00020547,2]
[326621110,1715155656340,-500.0,0.00020547,2]
[326621111,1715155656360,-519.59,0.00020547,2]
[326621112,1715155656381,-500.0,0.00020547,2]
[326621113,1715155657052,-657.29,0.00020547,2]
[326621114,1715155657278,-1484.1,0.00020547,2]
[326621115,1715155657802,-500.0,0.00020547,2]
[326621116,1715155658495,-500.0,0.00020547,2]
[326621117,1715155659128,-544.7,0.00020547,2]
[326621118,1715155659783,-202.52636872,0.00020547,2]
[326621119,1715155660336,-1011.52,0.00020547,2]
[326621120,1715155661031,-500.0,0.00020547,2]
[326621121,1715155661675,-941.6,0.00020547,2]
[326621122,1715155662328,-3794.62,0.00020547,2]
[326621123,1715155663630,-500.0,0.00020547,2]
[326621124,1715155664277,-502.68,0.00020547,2]
[326621125,1715155664933,-500.0,0.00020547,2]
[326621126,1715155666779,-798.95,0.00020547,2]
[326621127,1715155666816,-500.0,0.00020547,2]
[326621128,1715155666841,-500.0,0.00020547,2]
[326621129,1715155666866,-1000.0,0.0002065,2]
[326621130,1715155666887,-1000.0,0.00020679,2]
[326621131,1715155666908,-1014.58238801,0.00020694,2]
[326621132,1715155666931,-150.0,0.00020777,2]
[326621133,1715155666952,-500.0,0.00020821,2]
[326621134,1715155666973,-500.0,0.00020821,2]
[326621135,1715155666994,-519.59,0.00020821,2]
[326621136,1715155667016,-500.0,0.00020821,2]
[326621137,1715155667039,-657.29,0.00020821,2]
[326621138,1715155667062,-1484.1,0.00020821,2]
[326621139,1715155667083,-500.0,0.00020821,2]
[326621140,1715155667104,-500.0,0.00020821,2]
[326621141,1715155667125,-544.7,0.00020821,2]
[326621142,1715155667147,-1011.52,0.00020821,2]
[326621143,1715155667167,-500.0,0.00020821,2]
[326621144,1715155667188,-941.6,0.00020821,2]
[326621145,1715155667209,-3794.62,0.00020821,2]
[326621146,1715155667231,-500.0,0.00020821,2]
[326621147,1715155667252,-502.68,0.00020821,2]
[326621148,1715155667272,-500.0,0.00020821,2]
[326621149,1715155667294,-798.95,0.00020821,2]
[326621150,1715155667315,-500.0,0.00020821,2]
[326621151,1715155667336,-500.0,0.00020821,2]
[326621152,1715155667360,-1000.0,0.00020872,2]
[326621153,1715155667382,-2103.48558965,0.00020912,2]
[326621154,1715155667401,-184.19282833,0.00020912,2]
[326621155,1715155667421,-174.87774897,0.00020913,2]
[326621156,1715155667443,-150.0,0.00020994,2]
[326621157,1715155667463,-258.43288709,0.00021,2]
[326621158,1715155667486,-151.13730824,0.00021058,2]
[326621159,1715155667508,-634.38637967,0.00021095,2]
[326621160,1715155667528,-500.0,0.00021095,2]
[326621161,1715155667550,-519.59,0.00021095,2]
[326621162,1715155667575,-500.0,0.00021095,2]
[326621163,1715155667604,-657.29,0.00021095,2]
[326621164,1715155667625,-1484.1,0.00021095,2]
[326621165,1715155667647,-500.0,0.00021095,2]
[326621166,1715155667668,-500.0,0.00021095,2]
[326621167,1715155667690,-544.7,0.00021095,2]
[326621168,1715155667712,-1011.52,0.00021095,2]
[326621169,1715155667733,-500.0,0.00021095,2]
[326621170,1715155667759,-941.6,0.00021095,2]
[326621171,1715155667781,-3794.62,0.00021095,2]
[326621172,1715155667805,-500.0,0.00021095,2]
[326621173,1715155667830,-502.68,0.00021095,2]
[326621174,1715155667851,-500.0,0.00021095,2]
[326621175,1715155667873,-798.95,0.00021095,2]
[326621176,1715155667899,-500.0,0.00021095,2]
[326621177,1715155667921,-500.0,0.00021095,2]
[326621178,1715155667944,-306.7004866,0.00021096,2]
[326621179,1715155667967,-478.0,0.000211,2]
[326621180,1715155667988,-150.0,0.0002121,2]